{"text_format":"1","workbook":"xlsx","n_sheets":3,"sheets":["Lagerbeholdningsliste","Lagerplukliste","Søg i beholdere"],"not_rendered":{"charts":0,"images":0,"macros":1,"external_links":0,"defined_names":5,"comments":0,"pivot_tables":0},"unopened":[],"bounds":{"document_bytes":16777216,"sheet_cells":100000,"rows_first":2000,"rows_last":500,"rows_between":2000,"halvings":0,"cell_chars":16384,"cell_head_chars":4096},"cells_cut":0,"cells_raw":0,"read":"whole","date_system":"1900"}

{"sheet":"Lagerbeholdningsliste","index":0,"n_rows":15,"n_cols":11,"rows_kept":15,"cut":false,"hidden":false,"merged":[]}
[null,"LAGERBEHOLDNINGSLISTE"]
[null,"SAMLET LAGERVÆRDI:","LAGERVARER:","ANTAL BEHOLDERE:","LAGERPLUKLISTE","SØG I BEHOLDERE"]
[null,{"$f":"SUM(LagerListe[LAGERVÆRDI])","v":4649},{"$f":"COUNTA(LagerListe[BESKRIVELSE])","v":11},{"$f":"SUMPRODUCT((1/COUNTIF(LagerListe[BEHOLDERNUMMER],LagerListe[BEHOLDERNUMMER]&\"\")))","v":6}]
[null,"VARENUMMER","BESKRIVELSE","BEHOLDERNUMMER","PLACERING","ENHED","MÆNGDE","ANTAL GENBESTILLINGER","PRIS","LAGERVÆRDI","GENBESTILLING"]
[null,"SP7875","Vare 1","T345",{"$f":"IFERROR(VLOOKUP(LagerListe[[#This Row],[BEHOLDERNUMMER]],SøgIBeholder[],3,FALSE),\"\")","v":"Række 2, plads 1"},"Hver",20,10,30,{"$f":"LagerListe[[#This Row],[MÆNGDE]]*LagerListe[[#This Row],[PRIS]]","v":600},{"$f":"IFERROR(IF(LagerListe[[#This Row],[MÆNGDE]]<=LagerListe[[#This Row],[ANTAL GENBESTILLINGER]],1,0),0)","v":0}]
[null,"TR87680","Vare 2","T345",{"$f":"IFERROR(VLOOKUP(LagerListe[[#This Row],[BEHOLDERNUMMER]],SøgIBeholder[],3,FALSE),\"\")","v":"Række 2, plads 1"},"Hver",30,15,40,{"$f":"LagerListe[[#This Row],[MÆNGDE]]*LagerListe[[#This Row],[PRIS]]","v":1200},{"$f":"IFERROR(IF(LagerListe[[#This Row],[MÆNGDE]]<=LagerListe[[#This Row],[ANTAL GENBESTILLINGER]],1,0),0)","v":0}]
[null,"MK676554","Vare 3","T5789",{"$f":"IFERROR(VLOOKUP(LagerListe[[#This Row],[BEHOLDERNUMMER]],SøgIBeholder[],3,FALSE),\"\")","v":"Række 1, plads 1"},"Hver",10,5,5,{"$f":"LagerListe[[#This Row],[MÆNGDE]]*LagerListe[[#This Row],[PRIS]]","v":50},{"$f":"IFERROR(IF(LagerListe[[#This Row],[MÆNGDE]]<=LagerListe[[#This Row],[ANTAL GENBESTILLINGER]],1,0),0)","v":0}]
[null,"YE98767","Vare 4","T9876",{"$f":"IFERROR(VLOOKUP(LagerListe[[#This Row],[BEHOLDERNUMMER]],SøgIBeholder[],3,FALSE),\"\")","v":"Række 3, plads 2"},"Æske (10 ct)",40,10,15,{"$f":"LagerListe[[#This Row],[MÆNGDE]]*LagerListe[[#This Row],[PRIS]]","v":600},{"$f":"IFERROR(IF(LagerListe[[#This Row],[MÆNGDE]]<=LagerListe[[#This Row],[ANTAL GENBESTILLINGER]],1,0),0)","v":0}]
[null,"XR23423","Vare 5","T098",{"$f":"IFERROR(VLOOKUP(LagerListe[[#This Row],[BEHOLDERNUMMER]],SøgIBeholder[],3,FALSE),\"\")","v":"Række 3, plads 1"},"Hver",12,10,26,{"$f":"LagerListe[[#This Row],[MÆNGDE]]*LagerListe[[#This Row],[PRIS]]","v":312},{"$f":"IFERROR(IF(LagerListe[[#This Row],[MÆNGDE]]<=LagerListe[[#This Row],[ANTAL GENBESTILLINGER]],1,0),0)","v":0}]
[null,"PW98762","Vare 6","T345",{"$f":"IFERROR(VLOOKUP(LagerListe[[#This Row],[BEHOLDERNUMMER]],SøgIBeholder[],3,FALSE),\"\")","v":"Række 2, plads 1"},"Hver",7,10,50,{"$f":"LagerListe[[#This Row],[MÆNGDE]]*LagerListe[[#This Row],[PRIS]]","v":350},{"$f":"IFERROR(IF(LagerListe[[#This Row],[MÆNGDE]]<=LagerListe[[#This Row],[ANTAL GENBESTILLINGER]],1,0),0)","v":1}]
[null,"BM87684","Vare 7","T349",{"$f":"IFERROR(VLOOKUP(LagerListe[[#This Row],[BEHOLDERNUMMER]],SøgIBeholder[],3,FALSE),\"\")","v":"Række 1, plads 2"},"Hver",10,5,10,{"$f":"LagerListe[[#This Row],[MÆNGDE]]*LagerListe[[#This Row],[PRIS]]","v":100},{"$f":"IFERROR(IF(LagerListe[[#This Row],[MÆNGDE]]<=LagerListe[[#This Row],[ANTAL GENBESTILLINGER]],1,0),0)","v":0}]
[null,"BH67655","Vare 8","T5789",{"$f":"IFERROR(VLOOKUP(LagerListe[[#This Row],[BEHOLDERNUMMER]],SøgIBeholder[],3,FALSE),\"\")","v":"Række 1, plads 1"},"Hver",19,10,3,{"$f":"LagerListe[[#This Row],[MÆNGDE]]*LagerListe[[#This Row],[PRIS]]","v":57},{"$f":"IFERROR(IF(LagerListe[[#This Row],[MÆNGDE]]<=LagerListe[[#This Row],[ANTAL GENBESTILLINGER]],1,0),0)","v":0}]
[null,"WT98768","Vare 9","T9875",{"$f":"IFERROR(VLOOKUP(LagerListe[[#This Row],[BEHOLDERNUMMER]],SøgIBeholder[],3,FALSE),\"\")","v":"Række 2, plads 2"},"Pakke (5 ct)",20,30,14,{"$f":"LagerListe[[#This Row],[MÆNGDE]]*LagerListe[[#This Row],[PRIS]]","v":280},{"$f":"IFERROR(IF(LagerListe[[#This Row],[MÆNGDE]]<=LagerListe[[#This Row],[ANTAL GENBESTILLINGER]],1,0),0)","v":1}]
[null,"TS3456","Vare 10","T349",{"$f":"IFERROR(VLOOKUP(LagerListe[[#This Row],[BEHOLDERNUMMER]],SøgIBeholder[],3,FALSE),\"\")","v":"Række 1, plads 2"},"Hver",15,8,60,{"$f":"LagerListe[[#This Row],[MÆNGDE]]*LagerListe[[#This Row],[PRIS]]","v":900},{"$f":"IFERROR(IF(LagerListe[[#This Row],[MÆNGDE]]<=LagerListe[[#This Row],[ANTAL GENBESTILLINGER]],1,0),0)","v":0}]
[null,"WDG123","Vare 11","T349",{"$f":"IFERROR(VLOOKUP(LagerListe[[#This Row],[BEHOLDERNUMMER]],SøgIBeholder[],3,FALSE),\"\")","v":"Række 1, plads 2"},"Hver",25,15,8,{"$f":"LagerListe[[#This Row],[MÆNGDE]]*LagerListe[[#This Row],[PRIS]]","v":200},{"$f":"IFERROR(IF(LagerListe[[#This Row],[MÆNGDE]]<=LagerListe[[#This Row],[ANTAL GENBESTILLINGER]],1,0),0)","v":0}]

{"sheet":"Lagerplukliste","index":1,"n_rows":9,"n_cols":9,"rows_kept":9,"cut":false,"hidden":false,"merged":[]}
[null,"LAGERPLUKLISTE"]
[null,null,"LAGERLISTE"]
[]
[null,"ORDRENUMMER","VARENUMMER","PLUKANTAL","ANTAL TILGÆNGELIGE","VAREBESKRIVELSE","ENHED","BEHOLDERNUMMER","PLACERING"]
[null,"TP001-1","SP7875",3,{"$f":"IFERROR(VLOOKUP(LagerPlukListe[VARENUMMER],LagerListe[],6,FALSE),\"\")","v":20},{"$f":"IFERROR(VLOOKUP(LagerPlukListe[VARENUMMER],LagerListe[],2,FALSE),\"\")","v":"Vare 1"},{"$f":"IFERROR(VLOOKUP(LagerPlukListe[VARENUMMER],LagerListe[],5,FALSE),\"\")","v":"Hver"},{"$f":"IFERROR(VLOOKUP(LagerPlukListe[VARENUMMER],LagerListe[],3,FALSE),\"\")","v":"T345"},{"$f":"IFERROR(VLOOKUP(LagerPlukListe[VARENUMMER],LagerListe[],4,FALSE),\"\")","v":"Række 2, plads 1"}]
[null,"TP001-1","YE98767",1,{"$f":"IFERROR(VLOOKUP(LagerPlukListe[VARENUMMER],LagerListe[],6,FALSE),\"\")","v":40},{"$f":"IFERROR(VLOOKUP(LagerPlukListe[VARENUMMER],LagerListe[],2,FALSE),\"\")","v":"Vare 4"},{"$f":"IFERROR(VLOOKUP(LagerPlukListe[VARENUMMER],LagerListe[],5,FALSE),\"\")","v":"Æske (10 ct)"},{"$f":"IFERROR(VLOOKUP(LagerPlukListe[VARENUMMER],LagerListe[],3,FALSE),\"\")","v":"T9876"},{"$f":"IFERROR(VLOOKUP(LagerPlukListe[VARENUMMER],LagerListe[],4,FALSE),\"\")","v":"Række 3, plads 2"}]
[null,"TP001-1","BM87684",2,{"$f":"IFERROR(VLOOKUP(LagerPlukListe[VARENUMMER],LagerListe[],6,FALSE),\"\")","v":10},{"$f":"IFERROR(VLOOKUP(LagerPlukListe[VARENUMMER],LagerListe[],2,FALSE),\"\")","v":"Vare 7"},{"$f":"IFERROR(VLOOKUP(LagerPlukListe[VARENUMMER],LagerListe[],5,FALSE),\"\")","v":"Hver"},{"$f":"IFERROR(VLOOKUP(LagerPlukListe[VARENUMMER],LagerListe[],3,FALSE),\"\")","v":"T349"},{"$f":"IFERROR(VLOOKUP(LagerPlukListe[VARENUMMER],LagerListe[],4,FALSE),\"\")","v":"Række 1, plads 2"}]
[null,"TP001-1","TS3456",6,{"$f":"IFERROR(VLOOKUP(LagerPlukListe[VARENUMMER],LagerListe[],6,FALSE),\"\")","v":15},{"$f":"IFERROR(VLOOKUP(LagerPlukListe[VARENUMMER],LagerListe[],2,FALSE),\"\")","v":"Vare 10"},{"$f":"IFERROR(VLOOKUP(LagerPlukListe[VARENUMMER],LagerListe[],5,FALSE),\"\")","v":"Hver"},{"$f":"IFERROR(VLOOKUP(LagerPlukListe[VARENUMMER],LagerListe[],3,FALSE),\"\")","v":"T349"},{"$f":"IFERROR(VLOOKUP(LagerPlukListe[VARENUMMER],LagerListe[],4,FALSE),\"\")","v":"Række 1, plads 2"}]
[null,"TP001-1","MK676554",3,{"$f":"IFERROR(VLOOKUP(LagerPlukListe[VARENUMMER],LagerListe[],6,FALSE),\"\")","v":10},{"$f":"IFERROR(VLOOKUP(LagerPlukListe[VARENUMMER],LagerListe[],2,FALSE),\"\")","v":"Vare 3"},{"$f":"IFERROR(VLOOKUP(LagerPlukListe[VARENUMMER],LagerListe[],5,FALSE),\"\")","v":"Hver"},{"$f":"IFERROR(VLOOKUP(LagerPlukListe[VARENUMMER],LagerListe[],3,FALSE),\"\")","v":"T5789"},{"$f":"IFERROR(VLOOKUP(LagerPlukListe[VARENUMMER],LagerListe[],4,FALSE),\"\")","v":"Række 1, plads 1"}]

{"sheet":"Søg i beholdere","index":2,"n_rows":11,"n_cols":7,"rows_kept":11,"cut":false,"hidden":false,"merged":[]}
[null,"SØG I BEHOLDERE"]
[null,"LAGERLISTE"]
[]
[null,"BEHOLDERNUMMER","BESKRIVELSE","PLACERING","BREDDE","HØJDE","LÆNGDE"]
[null,"T345","Stor beholder","Række 2, plads 1",50,10,10]
[null,"T5789","Lille beholder","Række 1, plads 1",25,5,5]
[null,"T9876","Stor beholder","Række 3, plads 2",50,10,10]
[null,"T098","Mellem beholder","Række 3, plads 1",30,7,10]
[null,"T349","Lille beholder","Række 1, plads 2",25,5,5]
[null,"T5789","Stor beholder","Række 4, plads 5",50,10,10]
[null,"T9875","Stor beholder","Række 2, plads 2",50,10,10]